Workbook

Sheet SPT-N Düzeltmesi
K2: SPT-N DÜZELTMESİ
B4: TMMOB JEOLOJİ MÜHENDİSLERİ ODASI
B5: PROJENİN ADI : | K5: ABCD
B6: Ada No : | K6: 1234 | T6: Koordinatlar : | Z6: X | AI6: Y | AQ6: Kot | AW6: Datum | BC6: Deniz, göl vb. Sondaj
B7: Parsel No : | K7: 123456 | Z7: 123456.2 | AI7: 1234567.1 | AQ7: 1234 | AW7: ITRF-3° | BC7: Su Derinliği: | BF7: 20
B8: Sondaj Kuyu No : | K8: SK-1 | T8: Kuyu Derinliği : | AC8: 50 | AK8: Yeraltı Suyu Seviyesi :
B9: DÜZELTME FAKTÖRLERİ [Veri girişi ve seçimi yapınız] | K9: Numune Alıcı Tipi : | T9: Standart (iç tüpü olan) | AK9: Enerji Oranı (%) : | BC9: 60
K10: Sondaj Delgi Çapı : | T10: Çap 65mm-115mm arasında | AK10: SPT Kılavuz Tij Boyu (Yerden) : | BC10: 1
K11: Tokmak Tipi : | T11: Otomatik darbeli tokmak | AK11: Hesaplama Metodu : | BC11: TBDY-2018'e uygundur
B12: GW | C12: GP | D12: GM | E12: GC | F12: SW | G12: SP | H12: SM | I12: SC | J12: ML | K12: CL | L12: MH | M12: CH | N12: SW-SC | O12: SW-SM | P12: SP-SC | Q12: SP-SM | R12: GW-GC | S12: GW-GM | T12: GP-GC | U12: GP-GM | V12: OL | W12: OH | X12: Pt | Y12: - | Z12: 10 | AB12: Kohezyonlu | AC12: Kohezyonsuz | AD12: Halkalı tokmak | AE12: Güvenli tokmak | AF12: Otomatik darbeli tokmak | AG12: Çap 65mm-115mm arasında | AH12: Çap 150mm | AI12: Çap 200mm | AJ12: Standart (iç tüpü olan) | AK12: İç tüpü olmayan | AL12: ED 50-3° | AM12: ED 50-6° | AN12: WGS 84 | AO12: ITRF-3° | AP12: ITRF-6° | AQ12: 1 | AR12: =IF(AQ12=1,AT12,AU12) -> SPT-N(60) | AS12: FALSE | AT12: SPT-N(60) | AU12: SPT-N(1,60) | AV12: =IF($BF$7>0,"Deniz Seviyesi",IF(AS12=TRUE,"","YASS")) -> Deniz Seviyesi | AW12: Kuyu sonu | AX12: =BF74 -> 28 | AY12: =AX12 -> 28 | AZ12: =BF75 -> 33 | BA12: =AZ12 -> 33 | BB12: =BF76 -> 38 | BC12: =BB12 -> 38 | BD12: =BF77 -> 60 | BE12: =BD12 -> 60 | BF12: =BF78 -> 0 | BG12: =BF12 -> 0 | BH12: =AC8 -> 50 | BI12: =BH12 -> 50
B13: SPT ve Laboratuvar Deneylerinden Alınan Veriler [Turuncu renkli hücrelerde elle veri girişi veya seçim yapınız] | X13: SPT-N Düzeltmesi
B15: Sıra No | E15: Derinlik (m) | F15: SPT VERİLERİ | J15: Zemin Davranışı [Seçim yapınız] | O15: Zemin Tipi [USCS] Birleştirilmiş zemin sınıflaması | P15: İnce Tane İçeriği [İTİ] (%) | S15: gn (kN/m3) | T15: gdoygun (kN/m3) | U15: *Kıvam Limitleri | X15: Toplam gerilme σvo (kN/m2) | AB15: Efektif gerilme σ'vo (kN/m2) | AF15: *CN | AI15: CR | AL15: CS | AO15: CB | AR15: CE | AU15: N60 | AY15: N1,60
F16: 1 | G16: 2 | H16: 3 | I16: SPT - N [darbe/30 cm] | U16: Likit limit | V16: Plastik limit | W16: Plastisite indisi (PI) | AF16: Örtü Yükü Düzeltme Katsayısı | AI16: Tij Boyu Düzeltme Katsayısı | AL16: Numune Alıcı Tipi Düzeltme Katsayısı | AO16: Sondaj Delgi Çapı Düzeltme Katsayısı | AR16: Enerji Oranı Düzeltme Katsayısı | AU16: Düzeltilmiş SPT-N Değ. N60= CR*CS*CB*CE | AY16: Düzeltilmiş SPT-N Değ. N1,60= CN*N60 | BC16: SPT (N) - Derinlik Grafiği [Seçiminizi yapınız]
F17: 0 - 15 cm | G17: 15 - 30 cm | H17: 30 - 45 cm
B18: -1- | E18: -2- | F18: -3- | I18: -4- | J18: -5- | O18: -6- | P18: -7- | S18: -8- | T18: -9- | U18: -10- | X18: -11- | AB18: -12- | AF18: -13- | AI18: -14- | AL18: -15- | AO18: -16- | AR18: -17- | AU18: -18- | AY18: -19- | BD18: -20- | BG18: =$AR$12 -> SPT-N(60)
B19: =IF(E19>0,1,"") -> 1 | E19: 20 | F19: 7 | G19: 10 | H19: 12 | I19: =IF($BF$7>0,"",IF(F19="","",IF(F19="r","refü",IF((COUNTIF(F19,"50/*"))>=1,"refü",IF((COUNTIF(G19,"50/*"))>=1,"refü",IF((COUNTIF(H19,"50/*"))>=1,"refü",IF(F19+G19>=100,"refü",IF(G19+H19>=100,"refü",G19+H19)))))))) ->  | J19: Kohezyonsuz | O19: GM | S19: 17 | T19: 21 | W19: =IF($BF$7>0,"",IF(V19="NP","",IF(U19="NP","",IF(U19="","",U19-V19)))) ->  | X19: =IF($BF$7>0,$BF$7*$Z$12,IF(E19="","",IF(E19<$BH$19,E19*S19,(($BH$19-0)*S19+(E19-$BH$19)*T19)))) -> 200 | AB19: =IF(BF7>0,"",IF(E19="","",IF($AC$8<E19,"",(X19-MAX($E$19-$BH$19,0)*9.81)))) ->  | AF19: =IF(BF7>0,"",IF(E19="","",IF(J19="Kohezyonlu","",IF(AND(9.78*SQRT(1/AB19)<=1.7),(9.78*SQRT(1/AB19)),IF(9.78*SQRT(1/AB19)>1.7,1.7,1))))) ->  | AI19: =IF(BF7>0,"",IF(E19="","",IF(E19+$BC$10<4,0.75,IF((E19+$BC$10)<6,0.85,IF((E19+$BC$10)<10,0.95,1))))) ->  | AL19: =IF(BF7>0,"",IF(E19="","",IF($T$9="Standart (iç tüpü olan)",1,1.2))) ->  | AO19: =IF(BF7>0,"",IF(E19="","",IF($T$10="Çap 65mm-115mm arasında",1,IF($T$10="Çap 150mm",1.05,IF($T$10="Çap 200mm",1.15))))) ->  | AR19: =IF(BF7>0,"",IF(I19="","",IF(I19="r","-",$BC$9/60))) ->  | AU19: =IF(BF7>0,"",IF(E19="","",IF(I19="refü","+50",IF(PRODUCT(I19,AI19,AL19,AO19,AR19)<=50,(PRODUCT(I19,AI19,AL19,AO19,AR19)),"+50")))) ->  | AY19: =IF(BF7>0,"",IF(E19="","",IF(J19="Kohezyonlu","",IF(I19="refü","+50",IF(PRODUCT(I19,AF19,AI19,AL19,AO19,AR19)<=50,(PRODUCT(I19,AF19,AI19,AL19,AO19,AR19)),"+50"))))) ->  | BC19: =IF(E19="",NA(),E19) -> 20 | BD19: =IF(AU19="",NA(),IF($AQ$12=2,NA(),IF($AQ$12=1,IF(AU19="+50",50,AU19)))) ->  | BE19: =IF(AY19="",NA(),IF($AQ$12=1,NA(),IF($AQ$12=2,IF(AY19="+50",50,AY19)))) ->  | BF19: 0 | BG19: 50 | BH19: =IF(AS12=TRUE,AC8,BC8) -> 0 | BI19: =IF(AS12=TRUE,AC8,BC8) -> 0 | BM19: =IF($BF$7="","","Deniz Tabanı") -> Deniz Tabanı
B20: =IF(B19="",2,IF(E20>0,B19+1,"")) -> 2 | E20: 20.45 | F20: 10 | G20: 12 | H20: 15 | I20: =IF(F20="","",IF(F20="r","refü",IF((COUNTIF(F20,"50/*"))>=1,"refü",IF((COUNTIF(G20,"50/*"))>=1,"refü",IF((COUNTIF(H20,"50/*"))>=1,"refü",IF(F20+G20>=100,"refü",IF(G20+H20>=100,"refü",G20+H20))))))) -> 27 | J20: Kohezyonsuz | O20: GC | S20: 17 | T20: 20 | W20: =IF(V20="NP","",IF(U20="NP","",IF(U20="","",U20-V20))) ->  | X20: =IF(E20="","",IF(E20<$BH$19,X19+((E20-E19)*S20),IF($BH$19<=E19,X19+((E20-E19)*T20),IF(AND($BH$19>E19,$BH$19<=E20),(X19+(($BH$19-E19)*S20)+(E20-$BH$19)*T20),"-")))) -> 209 | AB20: =IF(E20="","",(X20-MAX(E20-BF7,0)*9.81)) -> 204.5855 | AF20: =IF(E20="","",IF(J20="Kohezyonlu","",IF(9.78*SQRT(1/AB20)<=1.7,(9.78*SQRT(1/AB20)),IF(9.78*SQRT(1/AB20)>1.7,1.7,1)))) -> 0.6837564401 | AI20: =IF(E20="","",IF(E20+$BC$10<4,0.75,IF((E20+$BC$10)<6,0.85,IF((E20+$BC$10)<10,0.95,1)))) -> 1 | AL20: =IF(E20="","",IF($T$9="Standart (iç tüpü olan)",1,1.2)) -> 1 | AO20: =IF(E20="","",IF($T$10="Çap 65mm-115mm arasında",1,IF($T$10="Çap 150mm",1.05,IF($T$10="Çap 200mm",1.15)))) -> 1 | AR20: =IF(I20="","",IF(I20="r","-",$BC$9/60)) -> 1 | AU20: =IF(E20="","",IF(I20="refü","+50",IF(PRODUCT(I20,AI20,AL20,AO20,AR20)<=50,(PRODUCT(I20,AI20,AL20,AO20,AR20)),"+50"))) -> 27 | AY20: =IF(E20="","",IF(J20="Kohezyonlu","",IF(I20="refü","+50",IF(PRODUCT(I20,AF20,AI20,AL20,AO20,AR20)<=50,(PRODUCT(I20,AF20,AI20,AL20,AO20,AR20)),"+50")))) -> 18.46142388 | BC20: =IF(E20="",NA(),E20) -> 20.45 | BD20: =IF(AU20="",NA(),IF($AQ$12=2,NA(),IF($AQ$12=1,IF(AU20="+50",50,AU20)))) -> 27 | BM20: 0 | BN20: 50
B21: =IF(E21>0,B20+1,"") -> 3 | E21: 21.95 | F21: 9 | G21: 5 | H21: 6 | I21: =IF(F21="","",IF(F21="r","refü",IF((COUNTIF(F21,"50/*"))>=1,"refü",IF((COUNTIF(G21,"50/*"))>=1,"refü",IF((COUNTIF(H21,"50/*"))>=1,"refü",IF(F21+G21>=100,"refü",IF(G21+H21>=100,"refü",G21+H21))))))) -> 11 | J21: Kohezyonsuz | O21: CH | S21: 17 | T21: 20 | U21: 45 | V21: 20 | W21: =IF(V21="NP","",IF(U21="NP","",IF(U21="","",U21-V21))) -> 25 | X21: =IF(E21="","",IF(E21<$BH$19,X20+((E21-E20)*S21),IF($BH$19<=E20,X20+((E21-E20)*T21),IF(AND($BH$19>E20,$BH$19<=E21),(X20+(($BH$19-E20)*S21)+(E21-$BH$19)*T21),"-")))) -> 239 | AB21: =(IF(E21="","",(X21-MAX(E21-BF7,0)*9.81))) -> 219.8705 | AF21: =IF(E21="","",IF(J21="Kohezyonlu","",IF(9.78*SQRT(1/AB21)<=1.7,(9.78*SQRT(1/AB21)),IF(9.78*SQRT(1/AB21)>1.7,1.7,1)))) -> 0.659561615 | AI21: =IF(E21="","",IF(E21+$BC$10<4,0.75,IF((E21+$BC$10)<6,0.85,IF((E21+$BC$10)<10,0.95,1)))) -> 1 | AL21: 1 | AO21: 1 | AR21: 1 | AU21: 11 | AY21: 7.255177765 | BC21: 21.95 | BD21: 11 | BM21: =$BF$7 -> 20 | BN21: =$BF$7 -> 20
B22: 4 | E22: 23.45 | F22: 12 | G22: 10 | H22: 11 | I22: 21 | J22: Kohezyonlu | O22: CH | S22: 17 | T22: 19 | U22: 52 | V22: 20 | W22: 32 | X22: 267.5 | AB22: =(IF(E22="","",(X22-MAX(E22-BF8,0)*9.81))) -> 37.4555 | AI22: =IF(E22="","",IF(E22+$BC$10<4,0.75,IF((E22+$BC$10)<6,0.85,IF((E22+$BC$10)<10,0.95,1)))) -> 1 | AL22: 1 | AO22: 1 | AR22: 1 | AU22: 21 | AY22: =IF(E22="","",IF(J22="Kohezyonlu","",IF(I22="refü","+50",IF(PRODUCT(I22,AF22,AI22,AL22,AO22,AR22)<=50,(PRODUCT(I22,AF22,AI22,AL22,AO22,AR22)),"+50")))) ->  | BC22: 23.45 | BD22: 21
B23: 5 | E23: 24.95 | F23: 13 | G23: 8 | H23: 9 | I23: 17 | J23: Kohezyonsuz | O23: CH | S23: 19 | T23: 20 | U23: 55 | V23: 23 | W23: 32 | X23: 297.5 | AB23: 52.7405 | AF23: 1.346687204 | AI23: 1 | AL23: 1 | AO23: 1 | AR23: 1 | AU23: 17 | AY23: =IF(E23="","",IF(J23="Kohezyonlu","",IF(I23="refü","+50",IF(PRODUCT(I23,AF23,AI23,AL23,AO23,AR23)<=50,(PRODUCT(I23,AF23,AI23,AL23,AO23,AR23)),"+50")))) -> 22.89368246 | BC23: 24.95 | BD23: 17
B24: 6 | E24: 26.45 | F24: 2 | G24: 8 | H24: 9 | I24: 17 | J24: Kohezyonsuz | O24: SM | S24: 19 | T24: 20 | X24: 327.5 | AB24: 68.0255 | AF24: 1.185776894 | AI24: 1 | AL24: 1 | AO24: 1 | AR24: 1 | AU24: 17 | AY24: 20.1582072 | BC24: 26.45 | BD24: 17
B25: 7 | E25: 28 | F25: 8 | G25: 9 | H25: 9 | I25: 18 | J25: Kohezyonsuz | O25: CH | S25: 19 | T25: 20 | X25: 358.5 | AB25: 83.82 | AF25: 1.06823063 | AI25: 1 | AL25: 1 | AO25: 1 | AR25: 1 | AU25: 18 | AY25: 19.22815134 | BC25: 28 | BD25: 18
B26: 8 | E26: 30 | F26: 10 | G26: 9 | H26: 9 | I26: 18 | J26: Kohezyonsuz | O26: CH | S26: 19 | T26: 19 | X26: 396.5 | AB26: 102.2 | AF26: 0.9674163141 | AI26: 1 | AL26: 1 | AO26: 1 | AR26: 1 | AU26: 18 | AY26: 17.41349365 | BC26: 30 | BD26: 18
B27: 9 | E27: 32 | F27: 10 | G27: 8 | H27: 11 | I27: 19 | J27: Kohezyonsuz | O27: CH | S27: 19 | T27: 19 | X27: 434.5 | AB27: 120.58 | AF27: 0.8906379881 | AI27: 1 | AL27: 1 | AO27: 1 | AR27: 1 | AU27: 19 | AY27: 16.92212177 | BC27: 32 | BD27: 19
B28: 10 | E28: 34 | F28: 15 | G28: 10 | H28: 12 | I28: 22 | J28: Kohezyonsuz | O28: CH | S28: 19 | T28: 19 | X28: 472.5 | AB28: 138.96 | AF28: 0.8296481557 | AI28: 1 | AL28: 1 | AO28: 1 | AR28: 1 | AU28: 22 | AY28: 18.25225942 | BC28: 34 | BD28: 22
B29: 11 | E29: 36 | F29: 20 | G29: 23 | H29: 24 | I29: 47 | J29: Kohezyonsuz | O29: SM | S29: 18 | T29: 18 | X29: 508.5 | AB29: 155.34 | AF29: 0.7846883492 | AI29: 1 | AL29: 1 | AO29: 1 | AR29: 1 | AU29: 47 | AY29: 36.88035241 | BC29: 36 | BD29: 47
B30: 12 | E30: 38 | F30: 20 | G30: 24 | H30: 26 | I30: 50 | J30: Kohezyonsuz | O30: SM | S30: 18 | T30: 18 | X30: 544.5 | AB30: 171.72 | AF30: 0.7463257308 | AI30: 1 | AL30: 1 | AO30: 1 | AR30: 1 | AU30: 50 | AY30: 37.31628654 | BC30: 38 | BD30: 50
B31: 13 | E31: 40 | F31: 21 | G31: 26 | H31: 25 | I31: 51 | J31: Kohezyonsuz | O31: SM | S31: 18 | T31: 18 | X31: 580.5 | AB31: 188.1 | AF31: 0.713090182 | AI31: 1 | AL31: 1 | AO31: 1 | AR31: 1 | AU31: +50 | AY31: 36.36759928 | BC31: 40 | BD31: 50
B32: 14 | E32: 42 | F32: 23 | G32: 25 | H32: 23 | I32: 48 | J32: Kohezyonsuz | O32: SM | S32: 18 | T32: 18 | X32: 616.5 | AB32: 204.48 | AF32: 0.683932807 | AI32: 1 | AL32: 1 | AO32: 1 | AR32: 1 | AU32: 48 | AY32: 32.82877474 | BC32: 42 | BD32: 48
B33: 15 | E33: 44 | F33: 25 | G33: 23 | H33: 28 | I33: 51 | J33: Kohezyonsuz | O33: SM | S33: 18 | T33: 18 | X33: 652.5 | AB33: 220.86 | AF33: 0.658082468 | AI33: 1 | AL33: 1 | AO33: 1 | AR33: 1 | AU33: +50 | AY33: 33.56220587 | BC33: 44 | BD33: 50
B34: 16 | E34: 46 | F34: 26 | G34: 22 | H34: 29 | I34: 51 | J34: Kohezyonsuz | O34: SC | S34: 18 | T34: 18 | X34: 688.5 | AB34: 237.24 | AF34: 0.6349578505 | AI34: 1 | AL34: 1 | AO34: 1 | AR34: 1 | AU34: +50 | AY34: 32.38285038 | BC34: 46 | BD34: 50
B35: 17 | E35: 48 | F35: 25 | G35: 27 | H35: 30 | I35: =IF(F35="","",IF(F35="r","refü",IF((COUNTIF(F35,"50/*"))>=1,"refü",IF((COUNTIF(G35,"50/*"))>=1,"refü",IF((COUNTIF(H35,"50/*"))>=1,"refü",IF(F35+G35>=100,"refü",IF(G35+H35>=100,"refü",G35+H35))))))) -> 57 | J35: Kohezyonsuz | O35: SM | S35: 18 | T35: 18 | X35: 724.5 | AB35: 253.62 | AF35: 0.614111324 | AI35: 1 | AL35: =IF(E35="","",IF($T$9="Standart (iç tüpü olan)",1,1.2)) -> 1 | AO35: =IF(E35="","",IF($T$10="Çap 65mm-115mm arasında",1,IF($T$10="Çap 150mm",1.05,IF($T$10="Çap 200mm",1.15)))) -> 1 | AR35: =IF(I35="","",IF(I35="r","-",$BC$9/60)) -> 1 | AU35: +50 | AY35: 35.00434547 | BC35: 48 | BD35: 50
AF39: =IF(E39="","",IF(J39="Kohezyonlu","",IF(9.78*SQRT(1/AB39)<=1.7,(9.78*SQRT(1/AB39)),IF(9.78*SQRT(1/AB39)>1.7,1.7,1)))) ->  | AU39: =IF(E39="","",IF(I39="refü","+50",IF(PRODUCT(I39,AI39,AL39,AO39,AR39)<=50,(PRODUCT(I39,AI39,AL39,AO39,AR39)),"+50"))) -> 
BF41: GW
BF42: GP
BF43: GM
BF44: GC
BF45: SW
BF46: SP
BF47: SM
AF48: =IF(E48="","",IF(J48="Kohezyonlu","",IF(9.78*SQRT(1/AB48)<=1.7,(9.78*SQRT(1/AB48)),IF(9.78*SQRT(1/AB48)>1.7,1.7,1)))) ->  | AL48: =IF(E48="","",IF($T$9="Standart (iç tüpü olan)",1,1.2)) ->  | AO48: =IF(E48="","",IF($T$10="Çap 65mm-115mm arasında",1,IF($T$10="Çap 150mm",1.05,IF($T$10="Çap 200mm",1.15)))) ->  | AR48: =IF(I48="","",IF(I48="r","-",$BC$9/60)) ->  | AU48: =IF(E48="","",IF(I48="refü","+50",IF(PRODUCT(I48,AI48,AL48,AO48,AR48)<=50,(PRODUCT(I48,AI48,AL48,AO48,AR48)),"+50"))) ->  | AY48: =IF(E48="","",IF(J48="Kohezyonlu","",IF(I48="refü","+50",IF(PRODUCT(I48,AF48,AI48,AL48,AO48,AR48)<=50,(PRODUCT(I48,AF48,AI48,AL48,AO48,AR48)),"+50")))) ->  | BF48: SC
BF49: ML
BF50: CL
BD51: =IF(AU51="",NA(),IF($AQ$12=2,NA(),IF($AQ$12=1,IF(AU51="+50",50,AU51)))) ->  | BE51: =IF(AY51="",NA(),IF($AQ$12=1,NA(),IF($AQ$12=2,IF(AY51="+50",50,AY51)))) ->  | BF51: MH
X52: =IF(E52="","",IF(E52<$BH$19,X51+((E52-E51)*S52),IF($BH$19<=E51,X51+((E52-E51)*T52),IF(AND($BH$19>E51,$BH$19<=E52),(X51+(($BH$19-E51)*S52)+(E52-$BH$19)*T52),"-")))) ->  | BF52: CH
BF53: SW-SC
BF54: SW-SM
BF55: SP-SC
BF56: SP-SM
BF57: GW-GC
BF58: GW-GM
BF59: GP-GC
BF60: GP-GM
BF61: OL
BF62: OH
BF63: Pt
BF64: -
AF66: =IF(E66="","",IF(J66="Kohezyonlu","",IF(9.78*SQRT(1/AB66)<=1.7,(9.78*SQRT(1/AB66)),IF(9.78*SQRT(1/AB66)>1.7,1.7,1)))) ->  | AL66: =IF(E66="","",IF($T$9="Standart (iç tüpü olan)",1,1.2)) ->  | AO66: =IF(E66="","",IF($T$10="Çap 65mm-115mm arasında",1,IF($T$10="Çap 150mm",1.05,IF($T$10="Çap 200mm",1.15)))) ->  | AR66: =IF(I66="","",IF(I66="r","-",$BC$9/60)) ->  | AU66: =IF(E66="","",IF(I66="refü","+50",IF(PRODUCT(I66,AI66,AL66,AO66,AR66)<=50,(PRODUCT(I66,AI66,AL66,AO66,AR66)),"+50"))) ->  | AY66: =IF(E66="","",IF(J66="Kohezyonlu","",IF(I66="refü","+50",IF(PRODUCT(I66,AF66,AI66,AL66,AO66,AR66)<=50,(PRODUCT(I66,AF66,AI66,AL66,AO66,AR66)),"+50")))) -> 
B72: Þ | E72: =AC8 -> 50 | F72: Ü | G72: Kuyu Derinliği | I72: Hatalı durum | M72: Kırmızı çerçeveli kutu: Veri giriş uyarısı | U72: * Bilgi amaçlıdır. | X72: *CN düzeltmesi kohezyonlu zeminlere uygulanmamıştır. | AO72: Zemin Birimlerinin Açıklaması [Elle giriş yapınız] | BC72: Sınır çizgisi | BD72: Başl. | BE72: - | BF72: Bitiş derinliği
B74: NOT : Hesaplamaların sorumluluğu kullanıcıya aittir. Hesap cetveline ait telif hakları, 5846 sayılı Fikir ve Sanat Eserleri Kanunu gereğince TMMOB Jeoloji Mühendisleri Odasına ait olup, izin almaksızın içeriğinde herhangi bir değişiklik yapılamaz. Hesap cetveli JMO logolu kullanılmak kaydıyla ücretsiz olarak herkesin kullanımına açıktır. Ancak Oda logosunun hesap cetvelinden çıkarılarak kullanılmasının tespit edilmesi durumunda 5846 sayılı kanun gereğince ilgili kişi hakkında gerekli hukuki yollara başvurulacaktır. | AO74: siltli kum | BC74: =IF(BF74="","","-----") -> ----- | BD74: =IF($BF$7>0,$BF$7,0) -> 20 | BE74: =IF(AO74="","","-") -> - | BF74: 28 | BG74: =IF(ISBLANK(BF74),"","m arası") -> m arası
AO75: hhh | BC75: =IF(AO75="","","-..-..") -> -..-.. | BD75: =IF(BF75="","",BF74) -> 28 | BE75: =IF(AO75="","","-") -> - | BF75: 33 | BG75: =IF(ISBLANK(BF75),"","m arası") -> m arası
AO76: lll | BC76: =IF(AO76="","","-.-.-") -> -.-.- | BD76: =IF(BF76="","",BF75) -> 33 | BE76: =IF(AO76="","","-") -> - | BF76: 38 | BG76: =IF(ISBLANK(BF76),"","m arası") -> m arası
AO77: kkk ll | BC77: =IF(AO77="","","- - -") -> - - - | BD77: 38 | BF77: 60 | BG77: =IF(ISBLANK(BF77),"","m arası") -> m arası
BC78: =IF(AO78="","","----") ->  | BD78: =IF(BF78="","",BF77) ->  | BE78: =IF(AI78="","","-") ->  | BG78: =IF(ISBLANK(BF78),"","m arası") -> 
